Workbook

Sheet Informasjon
B2: HØP 2022-2025 Simuleringsmodell for utarbeidelse av drifts- og investeringsbudsjett
B6: Fyll ut navn til politisk parti:
K25: Ingen abonnenter

Sheet Oppsummering
B2: Oppsummering av partiets budsjettforslag 2022-2025
B3: =+Informasjon!D6 -> 0
B5: =IF(SUM(C15:F15)<>0,"NB! forslaget til driftsbudsjettet er i ubalanse. Vennligst returner til driftsbudsjettet og utfør nødvendige endringer inntil driftsbalansen viser NULL i alle 4 år.","") -> 
E7: Beløp i hele tusen kroner
B8: Drift | C8: 2022 | D8: =C8+1 -> 2023 | E8: =D8+1 -> 2024 | F8: 2025
B9: Brutto driftsramme iht kommunedirektørens forslag | C9: =+Drift!D332 -> 13693539 | D9: =+Drift!E332 -> 13816915 | E9: =+Drift!F332 -> 13878376 | F9: =+Drift!G332 -> 13964788
B10: Netto driftsresultat iht. kommunedirektørens forslag | C10: =Drift!D11 -> 0.016 | D10: =Drift!E11 -> 0.022 | E10: =Drift!F11 -> 0.018 | F10: =Drift!G11 -> 0.013
B12: Brutto driftsramme iht. partiets forslag (omtrentlig) | C12: =+Drift!D333 -> 13693539 | D12: =+Drift!E333 -> 13816915 | E12: =+Drift!F333 -> 13878376 | F12: =+Drift!G333 -> 13964788
B13: Netto driftsresultat iht. partiets forslag (omtrentlig) | C13: =+'Grunnlag måltall'!C61 -> 0.01625166744 | D13: =+'Grunnlag måltall'!D61 -> 0.02160271661 | E13: =+'Grunnlag måltall'!E61 -> 0.01822066313 | F13: =+'Grunnlag måltall'!F61 -> 0.01273562989
B15: =+Drift!C15 -> Sum driftsbalanse (skal være null) | C15: =+Drift!D15 -> 0 | D15: =+Drift!E15 -> 0 | E15: =+Drift!F15 -> 0 | F15: =+Drift!G15 -> 0
B17: =IF(SUM(C22:F22)<>0,"Foreslåtte endringer i investeringsbudsjettet øker investeringsnivået samlet de neste 4 årene med:","") ->  | F17: =+SUM(C22:F22) -> 0
B19: Investeringer | C19: =C8 -> 2022 | D19: =C19+1 -> 2023 | E19: =D19+1 -> 2024 | F19: 2025
B20: Brutto investeringer iht. kommunedirektørens forslag | C20: =+Investering!D9 -> 1793400 | D20: =+Investering!E9 -> 1815000 | E20: =+Investering!F9 -> 1774950 | F20: =+Investering!G9 -> 1128160
B21: Brutto investeringer iht. partiets forslag | C21: =+Investering!D11 -> 1793400 | D21: =+Investering!E11 -> 1815000 | E21: =+Investering!F11 -> 1774950 | F21: =+Investering!G11 -> 1128160
B22: Endring sammenlignet med kommunedirektørens forslag | C22: =+C21-C20 -> 0 | D22: =+D21-D20 -> 0 | E22: 0 | F22: 0
B24: Udekket | C24: =+Investering!D23 -> 0 | D24: =+Investering!E23 -> 0 | E24: =+Investering!F23 -> 0 | F24: =+Investering!G23 -> 0
B26: =IF(AND(SUM(C32:F32)<>0, F26>0),"Endringer i låneopptak medfører en økning i kommunens kapitalkostnader sammenlagt for neste 4 år på:","") ->  | F26: =SUM(C32:F32) -> 0
B28: Låneopptak og finanskostnader | C28: =C8 -> 2022 | D28: =C28+1 -> 2023 | E28: =D28+1 -> 2024 | F28: 2025
B29: Låneopptak iht. kommunedirektørens forslag | C29: =+Investering!D13 -> 976486 | D29: =+Investering!E13 -> 1060856 | E29: =+Investering!F13 -> 943998 | F29: =+Investering!G13 -> 323568
B30: Låneopptak iht. partiets forslag | C30: =+Investering!D15 -> 976486 | D30: =+Investering!E15 -> 1060856 | E30: =+Investering!F15 -> 943998 | F30: =+Investering!G15 -> 323568
B31: Endring sammenlignet med kommunedirektørens forslag | C31: =+Investering!D14 -> 0 | D31: =+Investering!E14 -> 0 | E31: =+Investering!F14 -> 0 | F31: =+Investering!G14 -> 0
B32: Endring i kapitalkostnader som følge av endring i låneopptak | C32: =+'Grunnlag finans'!C41 -> 0 | D32: =+'Grunnlag finans'!D41 -> 0 | E32: =+'Grunnlag finans'!E41 -> 0 | F32: =+'Grunnlag finans'!F41 -> 0

Sheet Investering
C2: Handlings- og økonomiplan 2022-2025 INVESTERINGER
C4: =+Informasjon!D6 -> 0
G6: Beløp i hele tusen kroner
C7: 1. Oppsummering | D7: =Oppsummering!C8 -> 2022 | E7: =D7+1 -> 2023 | F7: =E7+1 -> 2024 | G7: 2025 | H7: 2022-2025
C9: Kommunedirektørens forslag til investeringsbudsjett | D9: =+D290 -> 1793400 | E9: =+E290 -> 1815000 | F9: 1774950 | G9: 1128160 | H9: =+D9+E9+F9+G9 -> 6511510
C10: Partiets endringer- totale endringer | D10: =+D291 -> 0 | E10: =+E291 -> 0 | F10: =+F291 -> 0 | G10: =+G291 -> 0 | H10: =+D10+E10+F10+G10 -> 0
C11: Nytt forslag til investeringsbudsjett justert for partiets endringer | D11: =+D9+D10 -> 1793400 | E11: =+E9+E10 -> 1815000 | F11: =+F9+F10 -> 1774950 | G11: =+G9+G10 -> 1128160 | H11: =+D11+E11+F11+G11 -> 6511510
C13: Låneopptak iht kommunedirektørens forslag | D13: =+D295 -> 976486 | E13: =+E295 -> 1060856 | F13: 943998 | G13: 323568 | H13: =+G13+F13+E13+D13 -> 3304908
C14: Låneopptak iht. partiet endringer | D14: =+D301 -> 0 | E14: =+E301 -> 0 | F14: =+F301 -> 0 | G14: =+G301 -> 0 | H14: =+D14+E14+F14+G14 -> 0
C15: Nytt nivå på låneopptak justert for partiet endringer | D15: =+D13+D14 -> 976486 | E15: =+E13+E14 -> 1060856 | F15: =+F13+F14 -> 943998 | G15: =+G13+G14 -> 323568 | H15: =+H13+H14 -> 3304908
C17: Overføring fra drift iht kommunedirektørens forslag | D17: 233636 | E17: 286411 | F17: 228036 | G17: 148074 | H17: =+G17+F17+E17+D17 -> 896157
C18: Overføring fra drift iht. partiets endringer | D18: =+D298 -> 0 | E18: =+E298 -> 0 | F18: 0 | G18: 0 | H18: =+G18+F18+E18+D18 -> 0
C19: Nytt nivå på overføring fra drift justert for partiets endringer | D19: =+D17+D18 -> 233636 | E19: =+E17+E18 -> 286411 | F19: =+F17+F18 -> 228036 | G19: =+G17+G18 -> 148074 | H19: =+H17+H18 -> 896157
C21: Udekket iht. kommunedirektørens forslag | D21: =+(D295+D296)-D290 -> 0 | E21: =+(E295+E296)-E290 -> 0 | F21: =+(F295+F296)-F290 -> 0 | G21: =+(G295+G296)-G290 -> 0 | H21: =+D21+E21+F21+G21 -> 0
C23: Udekket iht. partiets forslag | D23: =+D302 -> 0 | E23: =+E302 -> 0 | F23: =+F302 -> 0 | G23: =+G302 -> 0 | H23: =+D23+E23+F23+G23 -> 0
C26: 2. HØP 2022-2025 - Investeringstabell
C27: Diverse bygg og felles investeringer
C28: Kommunedirektørens forslag- sum diverse bygg, anlegg og felles investeringer | D28: 506700 | E28: 448900 | F28: 309950 | G28: 52100 | H28: =+G28+F28+E28+D28 -> 1317650
H29: =SUM(D29:G29) -> 0
H30: =SUM(D30:G30) -> 0
H31: 0
H32: 0
H33: 0
H34: 0
H35: 0
H36: 0
H37: =SUM(D37:G37) -> 0
H38: 0
H39: 0
H40: 0
H41: 0
H42: 0
H43: 0
H44: 0
H45: 0
H46: 0
H47: 0
H48: 0
C49: Sum partiets endringer- diverse bygg og anlegg | D49: =SUM(D29:D48) -> 0 | E49: =SUM(E29:E48) -> 0 | F49: =SUM(F29:F48) -> 0 | G49: =SUM(G29:G48) -> 0 | H49: =SUM(H29:H48) -> 0
C50: Nytt forslag til budsjett justert for partiets endringer- diverse bygg og anlegg | D50: =+D28+D49 -> 506700 | E50: =+E28+E49 -> 448900 | F50: =+F28+F49 -> 309950 | G50: =+G28+G49 -> 52100 | H50: =+H28+H49 -> 1317650
C52: Skole
C53: Kommunedirektørens forslag- sum skole | D53: 206500 | E53: 312900 | F53: 351600 | G53: 297000 | H53: =+G53+F53+E53+D53 -> 1168000
H54: =SUM(D54:G54) -> 0
H55: =SUM(D55:G55) -> 0
H56: 0
H57: 0
H58: 0
H59: 0
H60: 0
H61: 0
H62: 0
H63: 0
H64: 0
H65: 0
H66: 0
H67: 0
H68: 0
H69: 0
H70: 0
H71: 0
H72: 0
C73: Sum partiets endringer- skole | D73: =SUM(D54:D72) -> 0 | E73: =SUM(E54:E72) -> 0 | F73: 0 | G73: 0 | H73: =SUM(H54:H72) -> 0
C74: Nytt forslag til budsjett justert for partiets endringer- skole | D74: =+D53+D73 -> 206500 | E74: =+E53+E73 -> 312900 | F74: =+F53+F73 -> 351600 | G74: =+G53+G73 -> 297000 | H74: =+H53+H73 -> 1168000
C76: Barnehage
C77: Kommunedirektørens forslag- sum barnehage | D77: 132100 | E77: 81100 | F77: 37100 | G77: 3000 | H77: =+G77+F77+E77+D77 -> 253300
H78: =SUM(D78:G78) -> 0
H79: =SUM(D79:G79) -> 0
H80: 0
H81: 0
H82: 0
H83: 0
H84: 0
H85: 0
H86: 0
H87: 0
H88: 0
H89: 0
H90: 0
H91: 0
H92: 0
H93: 0
H94: 0
H95: 0
H96: 0
C97: Sum partiets endringer- barnehage | D97: =SUM(D78:D96) -> 0 | E97: =SUM(E78:E96) -> 0 | F97: 0 | G97: 0 | H97: =SUM(H78:H96) -> 0
C98: Nytt forslag til budsjett justert for partiets endringer- barnehage | D98: =+D77+D97 -> 132100 | E98: =+E77+E97 -> 81100 | F98: =+F77+F97 -> 37100 | G98: =+G77+G97 -> 3000 | H98: =+H77+H97 -> 253300
C100: Helse og velferd
C101: Kommunedirektørens forslag- sum helse og velferd | D101: 242650 | E101: 312500 | F101: 293900 | G101: 145000 | H101: =+G101+F101+E101+D101 -> 994050
H102: =SUM(D102:G102) -> 0
H103: =SUM(D103:G103) -> 0
H104: 0
H105: 0
H106: 0
H107: 0
H108: =SUM(D108:G108) -> 0
H109: 0
H110: 0
H111: 0
H112: 0
H113: 0
H114: 0
H115: 0
H116: 0
H117: 0
H118: 0
H119: 0
H120: 0
H121: 0
H122: 0
H123: 0
C124: Sum partiets endringer- helse og velferd | D124: =SUM(D102:D123) -> 0 | E124: =SUM(E102:E123) -> 0 | F124: 0 | G124: 0 | H124: =SUM(H102:H123) -> 0
C125: Nytt forslag til budsjett justert for partiets endringer- helse og velferd | D125: =+D101+D124 -> 242650 | E125: =+E101+E124 -> 312500 | F125: =+F101+F124 -> 293900 | G125: =+G101+G124 -> 145000 | H125: =+H101+H124 -> 994050 | I125: 18350
C127: Idrett og utemiljø
C128: Kommunedirektørens forslag- sum idrett og utemiljø | D128: 296250 | E128: 295300 | F128: 269850 | G128: 171500 | H128: =+G128+F128+E128+D128 -> 1032900
H129: =SUM(D129:G129) -> 0
H130: =SUM(D130:G130) -> 0
H131: 0
H132: 0
H133: =SUM(D133:G133) -> 0
H134: 0
H135: 0
H136: 0
H137: 0
H138: 0
H139: 0
H140: 0
H141: 0
H142: 0
H143: 0
H144: 0
H145: 0
H146: 0
H147: 0
H148: 0
H149: 0
H150: 0
H151: 0
H152: 0
H153: 0
H154: 0
H155: 0
H156: 0
H157: 0
H158: 0
C159: Sum partiets endringer- idrett og utemiljø | D159: =SUM(D129:D158) -> 0 | E159: =SUM(E129:E158) -> 0 | F159: 0 | G159: 0 | H159: =SUM(H129:H158) -> 0
C160: Nytt forslag til budsjett justert for partiets endringer- idrett og utemiljø | D160: =+D128+D159 -> 296250 | E160: =+E128+E159 -> 295300 | F160: =+F128+F159 -> 269850 | G160: =+G128+G159 -> 171500 | H160: =+H128+H159 -> 1032900
C162: Vann, avløp, slam og renovasjon
C163: Kommunedirektørens forslag- sum vann, avløp, slam og renovasjon | D163: 191000 | E163: 176800 | F163: 169200 | G163: 175100 | H163: =+G163+F163+E163+D163 -> 712100
H164: =SUM(D164:G164) -> 0
H165: =SUM(D165:G165) -> 0
H166: 0
H167: 0
H168: 0
H169: 0
H170: 0
H171: 0
H172: 0
H173: 0
H174: 0
H175: 0
H176: 0
H177: =+D177+E177+F177+G177 -> 0
H178: 0
H179: 0
H180: 0
H181: 0
H182: 0
H183: 0
C184: Sum partiets endringer- vann, avløp, slam og renovasjon | D184: =SUM(D164:D183) -> 0 | E184: =SUM(E164:E183) -> 0 | F184: 0 | G184: =SUM(G164:G183) -> 0 | H184: =SUM(H164:H183) -> 0
C185: Nytt forslag til budsjett justert for partiets endringer- vann, avløp, slam og renovasjon | D185: =+D163+D184 -> 191000 | E185: =+E163+E184 -> 176800 | F185: =+F163+F184 -> 169200 | G185: =+G163+G184 -> 175100 | H185: =+H163+H184 -> 712100
C187: Bolig
C188: Kommunedirektørens forslag- sum bolig | D188: 110500 | E188: 122500 | F188: 96000 | G188: 60500 | H188: =+G188+F188+E188+D188 -> 389500
H189: =SUM(D189:G189) -> 0
H190: =SUM(D190:G190) -> 0
H191: 0
H192: 0
H193: 0
H194: 0
H195: 0
H196: 0
H197: 0
H198: 0
H199: 0
H200: 0
H201: 0
H202: 0
H203: 0
H204: 0
H205: 0
H206: 0
H207: 0
H208: 0
C209: Sum partiets endringer- bolig | D209: =SUM(D189:D208) -> 0 | E209: =SUM(E189:E208) -> 0 | F209: 0 | G209: 0 | H209: =SUM(H189:H208) -> 0
C210: Nytt forslag til budsjett justert for partiets endringer- bolig | D210: =+D188+D209 -> 110500 | E210: =+E188+E209 -> 122500 | F210: =+F188+F209 -> 96000 | G210: =+G188+G209 -> 60500 | H210: =+H188+H209 -> 389500
C212: Kirker
C213: Kommunedirektørens forslag- sum kirker | D213: 66400 | E213: 29200 | F213: 56750 | G213: 30300 | H213: =+G213+F213+E213+D213 -> 182650
H214: =SUM(D214:G214) -> 0
H215: =SUM(D215:G215) -> 0
H216: 0
H217: 0
... 79 more rows

Sheet Drift
C2: Handlings- og økonomiplan 2022-2025 DRIFT
C3: =+Informasjon!D6 -> 0
F4: Beløp i hele tusen kroner
D5: =Oppsummering!C8 -> 2022 | E5: =D5+1 -> 2023 | F5: =E5+1 -> 2024 | G5: =F5+1 -> 2025
C8: 1. Oppsummering
C10: Brutto budsjettramme iht. kommunedirektørens forslag | D10: =+D332 -> 13693539 | E10: =+E332 -> 13816915 | F10: 13878376 | G10: 13964788
C11: Netto driftsresultat iht. kommunedirektørens forslag | D11: 0.016 | E11: 0.022 | F11: 0.018 | G11: 0.013
C12: Brutto budsjettramme iht. partiets forslag | D12: =+D333 -> 13693539 | E12: =+E333 -> 13816915 | F12: 13878376 | G12: 13964788
C13: Netto driftsresultat iht. partiets forslag (omtrentlig) | D13: =+'Grunnlag måltall'!C61 -> 0.01625166744 | E13: =+'Grunnlag måltall'!D61 -> 0.02160271661 | F13: =+'Grunnlag måltall'!E61 -> 0.01822066313 | G13: =+'Grunnlag måltall'!F61 -> 0.01273562989
C15: Sum driftsbalanse (skal være null) | D15: =D336 -> 0 | E15: =E336 -> 0 | F15: =F336 -> 0 | G15: =G336 -> 0
C18: 2. HØP 2022-2025 - Drift - Kommunedirektørens forslag til endringer.
C21: Oppvekst og utdanning
C24: Sum brutto endringer iht. kommunedirektørens forslag | D24: 38933 | E24: 5133 | F24: -15517 | G24: -21817
C25: Brutto budsjettramme iht. kommunedirektørens forslag | D25: 4236486 | E25: 4202686 | F25: 4182036 | G25: 4175736
C26: Legg inn dine endringer under:
C50: Sum endring iht. partiets forslag | D50: =SUM(D27:D49) -> 0 | E50: =SUM(E27:E49) -> 0 | F50: =SUM(F27:F49) -> 0 | G50: =SUM(G27:G49) -> 0
C51: Ny budsjettramme iht. partiets forslag | D51: =+D25+D50 -> 4236486 | E51: =+E25+E50 -> 4202686 | F51: =+F25+F50 -> 4182036 | G51: =+G25+G50 -> 4175736
C56: Helse og velferd
C59: Sum brutto endringer iht. kommunedirektørens forslag | D59: 30549 | E59: 32575 | F59: 63725 | G59: 103875
C60: Brutto budsjettramme iht. kommunedirektørens forslag | D60: 3855150 | E60: 3857176 | F60: 3888326 | G60: 3928476
C61: Legg inn dine endringer under:
C88: Sum endring iht. partiets forslag | D88: =SUM(D62:D87) -> 0 | E88: =SUM(E62:E87) -> 0 | F88: =SUM(F62:F87) -> 0 | G88: =SUM(G62:G87) -> 0
C89: Ny budsjettramme iht. partiets forslag | D89: =+D60+D88 -> 3855150 | E89: =+E60+E88 -> 3857176 | F89: =+F60+F88 -> 3888326 | G89: =+G60+G88 -> 3928476
C94: By- og samfunnsplanlegging
C97: Sum brutto endringer iht. kommunedirektørens forslag | D97: 10775 | E97: 7723 | F97: 4423 | G97: 4323
C98: Brutto budsjettramme iht. kommunedirektørens forslag | D98: 124516 | E98: 121464 | F98: 118164 | G98: 118064
C99: Legg inn dine endringer under:
C118: Sum endring iht. partiets forslag | D118: =SUM(D100:D117) -> 0 | E118: =SUM(E100:E117) -> 0 | F118: =SUM(F100:F117) -> 0 | G118: =SUM(G100:G117) -> 0
C119: Ny budsjettramme iht. partiets forslag | D119: =+D98+D118 -> 124516 | E119: =+E98+E118 -> 121464 | F119: =+F98+F118 -> 118164 | G119: =+G98+G118 -> 118064
C124: Bymiljø og utbygging
C127: Sum brutto endringer iht. kommunedirektørens forslag | D127: 115396 | E127: 143380 | F127: 177801 | G127: 235362
C128: Brutto budsjettramme iht. kommunedirektørens forslag | D128: 2776521 | E128: 2804505 | F128: 2838926 | G128: 2896487
C129: Legg inn dine endringer under:
C148: Sum endring iht. partiets forslag | D148: =SUM(D130:D147) -> 0 | E148: =SUM(E130:E147) -> 0 | F148: =SUM(F130:F147) -> 0 | G148: =SUM(G130:G147) -> 0
C149: Ny budsjettramme iht. partiets forslag | D149: =+D128+D148 -> 2776521 | E149: =+E128+E148 -> 2804505 | F149: =+F128+F148 -> 2838926 | G149: =+G128+G148 -> 2896487
C154: Innbygger- og samfunnskontakt
C157: Sum brutto endringer iht. kommunedirektørens forslag | D157: 17867 | E157: 17387 | F157: 19787 | G157: 28617
C158: Brutto budsjettramme iht. kommunedirektørens forslag | D158: 342959 | E158: 342479 | F158: 344879 | G158: 353709
C159: Legg inn dine endringer under:
C177: Sum endring iht. partiets forslag | D177: =SUM(D160:D176) -> 0 | E177: =SUM(E160:E176) -> 0 | F177: =SUM(F160:F176) -> 0 | G177: =SUM(G160:G176) -> 0
C178: Ny budsjettramme iht. partiets forslag | D178: =+D158+D177 -> 342959 | E178: =+E158+E177 -> 342479 | F178: =+F158+F177 -> 344879 | G178: =+G158+G177 -> 353709
C183: Innovasjon og støttetjenester
C186: Sum brutto endringer iht. kommunedirektørens forslag | D186: 17682 | E186: 16862 | F186: 19662 | G186: 19662
C187: Brutto budsjettramme iht. kommunedirektørens forslag | D187: 360500 | E187: 359680 | F187: 362480 | G187: 362480
C188: Legg inn dine endringer under:
C207: Sum endring iht. partiets forslag | D207: =SUM(D189:D206) -> 0 | E207: =SUM(E189:E206) -> 0 | F207: =SUM(F189:F206) -> 0 | G207: =SUM(G189:G206) -> 0
C208: Ny budsjettramme iht. partiets forslag | D208: =+D187+D207 -> 360500 | E208: =+E187+E207 -> 359680 | F208: =+F187+F207 -> 362480 | G208: =+G187+G207 -> 362480
C212: Kommunedirektør og kommuneadvokat
C215: Sum brutto endringer iht. kommunedirektørens forslag | D215: 1196 | E215: 1196 | F215: 1196 | G215: 1196
C216: Brutto budsjettramme iht. kommunedirektørens forslag | D216: 21414 | E216: 21414 | F216: 21414 | G216: 21414
C217: Legg inn dine endringer under:
C232: Sum endring iht. partiets forslag | D232: =SUM(D218:D231) -> 0 | E232: =SUM(E218:E231) -> 0 | F232: =SUM(F218:F231) -> 0 | G232: =SUM(G218:G231) -> 0
C233: Ny budsjettramme iht. partiets forslag | D233: =+D216+D232 -> 21414 | E233: =+E216+E232 -> 21414 | F233: =+F216+F232 -> 21414 | G233: =+G216+G232 -> 21414
C237: Økonomi og organisasjon
C240: Sum brutto endringer iht. kommunedirektørens forslag | D240: 5535 | E240: 5335 | F240: 3919 | G240: 2919
C241: Brutto budsjettramme iht. kommunedirektørens forslag | D241: 99387 | E241: 99187 | F241: 97771 | G241: 96771
C242: Legg inn dine endringer under:
C265: Sum endring iht. partiets forslag | D265: =SUM(D243:D264) -> 0 | E265: =SUM(E243:E264) -> 0 | F265: =SUM(F243:F264) -> 0 | G265: =SUM(G243:G264) -> 0
C266: Ny budsjettramme iht. partiets forslag | D266: =+D241+D265 -> 99387 | E266: =+E241+E265 -> 99187 | F266: =+F241+F265 -> 97771 | G266: =+G241+G265 -> 96771
C271: Felles utgifter
C274: Sum endring iht. kommunedirektørens forslag | D274: 125065 | E274: 256783 | F274: 272839 | G274: 260110
C275: Budsjettramme iht. kommunedirektørens forslag | D275: 1876606 | E275: 2008324 | F275: 2024380 | G275: 2011651
C276: Legg inn dine endringer under:
C296: Sum endring iht. partiets forslag | D296: =+SUM(D277:D295)+D326+D327 -> 0 | E296: =+SUM(E277:E295)+E326+E327 -> 0 | F296: 0 | G296: 0
C297: Ny budsjettramme iht. partiets forslag | D297: =+D275+D296 -> 1876606 | E297: =+E275+E296 -> 2008324 | F297: 2024380 | G297: 2011651
C301: Felles inntekter
C305: Legg inn dine endringer under: | D305: Økt inntekt legges inn som negativt tall (-)
C306: Skatt fra inntekt og formue
C307: Rammetilskudd
C308: Eiendomsskatt
C316: Legg inn dine endringer i disposisjonsfond under:
C317: Disposisjonsfond | I317: Disposisjonsfond
C319: Endring i overføring fra drift til investering (klikk på knappen under) | D319: 0 | E319: 0 | F319: 0 | G319: 0
C322: Sum endringer i felles inntekter og utgifter iht. partiets forslag | D322: =ROUND(+D307+D308+D313+D296+D306+D314+D315+D317+D319+D309+D310+D311+D312,-1) -> 0 | E322: =ROUND(+E307+E308+E313+E296+E306+E314+E315+E317+E319+E309+E310+E311+E312,-1) -> 0 | F322: 0 | G322: =ROUND(+G307+G308+G313+G296+G306+G314+G315+G317+G319+G309+G310+G311+G312,-1) -> 0
C325: Endringer i låneopptak i investeringsbudsjettet samt endringer i overføringer fra drift har medført følgende endringer i renter og avdrag:
C326: Renter, endret låneopptak (beregnes av modellen) | D326: =+'Grunnlag finans'!C36 -> 0 | E326: =+'Grunnlag finans'!D36 -> 0 | F326: =+'Grunnlag finans'!E36 -> 0 | G326: =+'Grunnlag finans'!F36 -> 0
C327: Endring avdragsbetalinger (beregnes av modellen) | D327: =+'Grunnlag finans'!C37 -> 0 | E327: =+'Grunnlag finans'!D37 -> 0 | F327: =+'Grunnlag finans'!E37 -> 0 | G327: =+'Grunnlag finans'!F37 -> 0
C332: Brutto driftsramme iht. kommunedirektørens forslag | D332: =+D275+D241+D216+D187+D158+D128+D98+D60+D25 -> 13693539 | E332: =+E275+E241+E216+E187+E158+E128+E98+E60+E25 -> 13816915 | F332: =+F275+F241+F216+F187+F158+F128+F98+F60+F25 -> 13878376 | G332: =+G275+G241+G216+G187+G158+G128+G98+G60+G25 -> 13964788
C333: Ny brutto driftsramme iht. partiets forslag | D333: =+D266+D233+D208+D275+D178+D149+D119+D89+D51+D322 -> 13693539 | E333: =+E266+E233+E208+E275+E178+E149+E119+E89+E51+E322 -> 13816915 | F333: =+F266+F233+F208+F275+F178+F149+F119+F89+F51+F322 -> 13878376 | G333: =+G266+G233+G208+G275+G178+G149+G119+G89+G51+G322 -> 13964788
C336: Sum driftsbalanse (skal være null) | D336: =ROUND(+D50+D88+D118+D148+D177+D207+D232+D265+D322,-1) -> 0 | E336: =ROUND(+E50+E88+E118+E148+E177+E207+E232+E265+E322,-1) -> 0 | F336: 0 | G336: 0
H399: *

Sheet Grunnlag finans (hidden)
B10: Låneopptak
B14: Rådmannens forslag: | C14: =Oppsummering!C8 -> 2022 | D14: =C14+1 -> 2023 | E14: =D14+1 -> 2024 | F14: =E14+1 -> 2025
B15: Ordinært låneopptak til investeringer | C15: =+Investering!D295 -> 976486 | D15: =+Investering!E295 -> 1060856 | E15: =+Investering!F295 -> 943998 | F15: =+Investering!G295 -> 323568
B16: Startlån | G16: Tar ikke med startlån, da dette ikke er med i gjeldsgradberegningen
B17: Låneopptak til videre utlån (ikke startlån) | G17: Tar ikke med videreutlån, da dette ikke er med i gjeldsgradberegningen
B18: Sum låneopptak rådmannens forslag | C18: =+C15+C16+C17 -> 976486 | D18: =+D15+D16+D17 -> 1060856 | E18: 943998 | F18: 323568
B20: Partiets forslag til endringer i låneopptak: | C20: =Oppsummering!C8 -> 2022 | D20: =C20+1 -> 2023 | E20: =D20+1 -> 2024 | F20: =E20+1 -> 2025
B21: Iht. budsjettforslag fra partiet | C21: =+Investering!D301 -> 0 | D21: =+Investering!E301 -> 0 | E21: =+Investering!F301 -> 0 | F21: =+Investering!G301 -> 0
B22: Startlån | G22: Ikke behov for denne - er ikke med i forslaget i investeringsfanen
B23: Låneopptak til videre utlån (ikke startlån) | G23: Ikke behov for denne - er ikke med i forslaget i investeringsfanen
B24: Sum endringer i låneopptak per år iht. partiets forslag | C24: =+C21+C22+C23 -> 0 | D24: =+D21+D22+D23 -> 0 | E24: =+E21+E22+E23 -> 0 | F24: 0
B26: Nytt låneopptak per år | C26: =+C24+C18 -> 976486 | D26: =+D24+D18 -> 1060856 | E26: 943998 | F26: 323568
B30: Endring i finanskostnader
B32: Endring i finanskostnader | C32: =Oppsummering!C8 -> 2022 | D32: =C32+1 -> 2023 | E32: =D32+1 -> 2024 | F32: 2025
B33: Rentesats | C33: 0.018 | D33: 0.0235 | E33: 0.026 | F33: 0.0265
B34: Nedbetalingstid (år) | C34: 30 | D34: 30 | E34: 30 | F34: 30
B35: Nytt lån | C35: =+Investering!D301 -> 0 | D35: =+Investering!E301 -> 0 | E35: =+Investering!F301 -> 0 | F35: =+Investering!G301 -> 0
B36: Renter | C36: =+C35*C33 -> 0 | D36: =+(C39+D35)*D33 -> 0 | E36: =+(D39+E35)*E33 -> 0 | F36: =+(E39+F35)*F33 -> 0
B37: Avdrag | C37: =+C35/C34 -> 0 | D37: =+(C35+D35)/D34 -> 0 | E37: =+(C35+D35+E35)/E34 -> 0 | F37: =+(C35+D35+E35+F35)/F34 -> 0
B38: Sum lån 1.januar | C38: =+C35 -> 0 | D38: =+C39+D35 -> 0 | E38: =+D39+E35 -> 0 | F38: =+E39+F35 -> 0
B39: Sum lån 31.desember | C39: =+C38-C37 -> 0 | D39: =+D38-D37 -> 0 | E39: =+E38-E37 -> 0 | F39: =+F38-F37 -> 0
B41: Sum endring finanskostnader | C41: =+C36+C37 -> 0 | D41: =+D36+D37 -> 0 | E41: =+E36+E37 -> 0 | F41: =+F36+F37 -> 0

Sheet Grunnlag måltall (hidden)
B2: Investeringer | C2: =Oppsummering!C8 -> 2022 | D2: =C2+1 -> 2023 | E2: =D2+1 -> 2024 | F2: 2025
B3: Diverse bygg og felles investeringer | C3: =+Investering!D50 -> 506700 | D3: =+Investering!E50 -> 448900 | E3: =+Investering!F50 -> 309950 | F3: =+Investering!G50 -> 52100
B4: =+Investering!C52 -> Skole | C4: =+Investering!D74 -> 206500 | D4: =+Investering!E74 -> 312900 | E4: =+Investering!F74 -> 351600 | F4: =+Investering!G74 -> 297000
B5: =+Investering!C76 -> Barnehage | C5: =+Investering!D98 -> 132100 | D5: =+Investering!E98 -> 81100 | E5: =+Investering!F98 -> 37100 | F5: =+Investering!G98 -> 3000
B6: Helse og velferd (eks. Bolig bygg KF) | C6: =+Investering!D125 -> 242650 | D6: =+Investering!E125 -> 312500 | E6: =+Investering!F125 -> 293900 | F6: =+Investering!G125 -> 145000
B7: Idrett og utemiljø | C7: =+Investering!D160 -> 296250 | D7: =+Investering!E160 -> 295300 | E7: =+Investering!F160 -> 269850 | F7: =+Investering!G160 -> 171500
B8: VAR | C8: =+Investering!D185 -> 191000 | D8: =+Investering!E185 -> 176800 | E8: =+Investering!F185 -> 169200 | F8: =+Investering!G185 -> 175100
B9: Bolig | C9: =+Investering!D210 -> 110500 | D9: =+Investering!E210 -> 122500 | E9: =+Investering!F210 -> 96000 | F9: =+Investering!G210 -> 60500
B10: Kirker | C10: =+Investering!D235 -> 66400 | D10: =+Investering!E235 -> 29200 | E10: =+Investering!F235 -> 56750 | F10: =+Investering!G235 -> 30300
B11: Klima og miljø | C11: =+Investering!D258 -> 16000 | D11: =+Investering!E258 -> 8000 | E11: =+Investering!F258 -> 160000 | F11: =+Investering!G258 -> 160000
B12: Forvaltning | C12: =+Investering!D285 -> 25300 | D12: =+Investering!E285 -> 27800 | E12: =+Investering!F285 -> 30600 | F12: =+Investering!G285 -> 33660
B13: Totalt | C13: =SUM(C3:C12) -> 1793400 | D13: =SUM(D3:D12) -> 1815000 | E13: 1774950 | F13: 1128160
B15: Drift | C15: =Oppsummering!C8 -> 2022 | D15: =C15+1 -> 2023 | E15: =D15+1 -> 2024 | F15: 2025
B16: =+Drift!C21 -> Oppvekst og utdanning | C16: =+Drift!D51 -> 4236486 | D16: =+Drift!E51 -> 4202686 | E16: =+Drift!F51 -> 4182036 | F16: =+Drift!G51 -> 4175736
B17: =+Drift!C56 -> Helse og velferd | C17: =+Drift!D89 -> 3855150 | D17: =+Drift!E89 -> 3857176 | E17: =+Drift!F89 -> 3888326 | F17: =+Drift!G89 -> 3928476
B18: =+Drift!C94 -> By- og samfunnsplanlegging | C18: =+Drift!D119 -> 124516 | D18: =+Drift!E119 -> 121464 | E18: =+Drift!F119 -> 118164 | F18: =+Drift!G119 -> 118064
B19: =+Drift!C124 -> Bymiljø og utbygging | C19: =+Drift!D149 -> 2776521 | D19: =+Drift!E149 -> 2804505 | E19: =+Drift!F149 -> 2838926 | F19: =+Drift!G149 -> 2896487
B20: =+Drift!C154 -> Innbygger- og samfunnskontakt | C20: =+Drift!D178 -> 342959 | D20: =+Drift!E178 -> 342479 | E20: =+Drift!F178 -> 344879 | F20: =+Drift!G178 -> 353709
B21: =Drift!C183 -> Innovasjon og støttetjenester | C21: =+Drift!D208 -> 360500 | D21: =+Drift!E208 -> 359680 | E21: =+Drift!F208 -> 362480 | F21: =+Drift!G208 -> 362480
B22: =Drift!C212 -> Kommunedirektør og kommuneadvokat | C22: =Drift!D233 -> 21414 | D22: =Drift!E233 -> 21414 | E22: =Drift!F233 -> 21414 | F22: =Drift!G233 -> 21414
B23: =Drift!C237 -> Økonomi og organisasjon | C23: =+Drift!D266 -> 99387 | D23: =+Drift!E266 -> 99187 | E23: =+Drift!F266 -> 97771 | F23: =+Drift!G266 -> 96771
B24: =Drift!C271 -> Felles utgifter | C24: =+Drift!D297 -> 1876606 | D24: =+Drift!E297 -> 2008324 | E24: =+Drift!F297 -> 2024380 | F24: =+Drift!G297 -> 2011651
B25: Totalt | C25: =SUM(C16:C24) -> 13693539 | D25: =SUM(D16:D24) -> 13816915 | E25: =SUM(E16:E24) -> 13878376 | F25: =SUM(F16:F24) -> 13964788
B27: Indikator | C27: 2013 | D27: 2014 | E27: 2015 | F27: 2016 | G27: 2017 | H27: 2018 | I27: 2019 | J27: 2020 | K27: 2021 | L27: 2022 | M27: 2023 | N27: 2024 | O27: 2025
B28: Egenfinansiering | C28: 0.42 | D28: 0.47 | E28: 0.45 | F28: 0.52 | G28: 0.63 | H28: 0.57 | I28: 0.37 | J28: 0.57 | K28: 0.44 | L28: =1-('Grunnlag finans'!C26/Investering!D292) -> 0.4555113193 | M28: =1-('Grunnlag finans'!D26/Investering!E292) -> 0.4155063361 | N28: =1-('Grunnlag finans'!E26/Investering!F292) -> 0.4681551593 | O28: =1-('Grunnlag finans'!F26/Investering!G292) -> 0.7131896185
B29: Måltall > 50 % | C29: 0.5 | D29: 0.5 | E29: 0.5 | F29: 0.5 | G29: 0.5 | H29: 0.5 | I29: 0.5 | J29: 0.5 | K29: 0.5 | L29: 0.5 | M29: 0.5 | N29: 0.5 | O29: 0.5
B30: Netto driftsresultat | C30: 0.01852431925 | D30: -0.01207512697 | E30: 0.03265214233 | F30: 0.04956557964 | G30: 0.04400459724 | H30: -0.002453250395 | I30: 0.011 | J30: 0.038 | K30: 0.02 | L30: =C61 -> 0.01625166744 | M30: =D61 -> 0.02160271661 | N30: 0.01822066313 | O30: =F61 -> 0.01273562989
B31: Måltall > 3 % | C31: 0.03 | D31: 0.03 | E31: 0.03 | F31: 0.03 | G31: 0.03 | H31: 0.03 | I31: 0.03 | J31: 0.03 | K31: 0.03 | L31: 0.03 | M31: 0.03 | N31: 0.03 | O31: 0.03
B32: Gjeldsgrad | C32: 0.558 | D32: 0.605 | E32: 0.608 | F32: 0.6073113539 | G32: 0.6182518888 | H32: 0.6242297725 | I32: 0.714 | J32: 0.65 | K32: 0.7 | L32: =C38 -> 0.7302557315 | M32: =D38 -> 0.7953581129 | N32: 0.8525430477 | O32: 0.8522009377
B33: Måltall < 60 % | C33: 0.6 | D33: 0.6 | E33: 0.6 | F33: 0.6 | G33: 0.6 | H33: 0.6 | I33: 0.6 | J33: 0.6 | K33: 0.6 | L33: 0.6 | M33: 0.6 | N33: 0.6 | O33: 0.6
B35: Gjeldsgrad | C35: =Oppsummering!C8 -> 2022 | D35: =C35+1 -> 2023 | E35: =D35+1 -> 2024 | F35: 2025
B36: Driftsinntekter | C36: =+C55 -> 12049902 | D36: =+D55 -> 12137779 | E36: 12184573 | F36: 12248393
B37: Gjeldsnivå for bykassen ekskl. startlån | C37: =8799510+'Grunnlag finans'!C39 -> 8799510 | D37: =9653881+'Grunnlag finans'!D39 -> 9653881 | E37: =10387873+'Grunnlag finans'!E39 -> 10387873 | F37: =10438092+'Grunnlag finans'!F39 -> 10438092 | G37: Oppdatert fra Utvikling i lånegjeld - beregnet lånegjeld per 31.12
B38: Gjeldsgrad (oppdateres automatisk) | C38: =+C37/C36 -> 0.7302557315 | D38: =+D37/D36 -> 0.7953581129 | E38: =+E37/E36 -> 0.8525430477 | F38: =+F37/F36 -> 0.8522009377
B40: Netto driftsresultat
B41: Kommunedirektørens forslag | C41: =Oppsummering!C8 -> 2022 | D41: =C41+1 -> 2023 | E41: =D41+1 -> 2024 | F41: 2025
B42: Driftsinntekter | C42: 12049902 | D42: 12137779 | E42: 12184573 | F42: 12248393
B43: Driftsutgifter | C43: 12192814 | D43: 12201293 | E43: 12242930 | F43: 12342053
B44: Brutto driftsresultat | C44: =+C42-C43 -> -142912 | D44: =+D42-D43 -> -63514 | E44: -58357 | F44: -93660
B45: Resultat eksterne finanstransaksjoner | C45: -215833 | D45: -231130 | E45: -278513 | F45: -311355
B46: Motpost avskrivninger | C46: 554576 | D46: 556853 | E46: 558881 | F46: 561006
B47: Nettodriftsresultat | C47: =SUM(C44:C46) -> 195831 | D47: =SUM(D44:D46) -> 262209 | E47: 222011 | F47: 155991
B48: Nettodriftsresultat i % | C48: =+C47/C42 -> 0.01625166744 | D48: =+D47/D42 -> 0.02160271661 | E48: 0.01822066313 | F48: 0.01273562989
B51: Endringer | C51: =Oppsummering!C8 -> 2022 | D51: =1+C51 -> 2023 | E51: =1+D51 -> 2024 | F51: 2025
B52: Politiske endringer i utgifter ift. kommunedirektørens forslag | C52: =+Drift!D50+Drift!D88+Drift!D118+Drift!D148+Drift!D177+Drift!D207+Drift!D232+Drift!D265+Drift!D296 -> 0 | D52: =+Drift!E50+Drift!E88+Drift!E118+Drift!E148+Drift!E177+Drift!E207+Drift!E232+Drift!E265+Drift!E296 -> 0 | E52: =+Drift!F50+Drift!F88+Drift!F118+Drift!F148+Drift!F177+Drift!F207+Drift!F232+Drift!F265+Drift!F296 -> 0 | F52: =+Drift!G50+Drift!G88+Drift!G118+Drift!G148+Drift!G177+Drift!G207+Drift!G232+Drift!G265+Drift!G296 -> 0
B53: Politiske endringer i inntekter ift. kommunedirektørens forslag | C53: =SUM(Drift!D306:D315) -> 0 | D53: =SUM(Drift!E306:E315) -> 0 | E53: =SUM(Drift!F306:F315) -> 0 | F53: =SUM(Drift!G306:G315) -> 0
B55: Driftsinntekter etter politiske endringer | C55: =C42-C53 -> 12049902 | D55: =D42-D53 -> 12137779 | E55: 12184573 | F55: 12248393
B56: Driftutgifter etter politiske endringer | C56: =+C43+C52 -> 12192814 | D56: =+D43+D52 -> 12201293 | E56: 12242930 | F56: 12342053
B57: Brutto driftsresultat etter politiske endringer | C57: =+C55-C56 -> -142912 | D57: =+D55-D56 -> -63514 | E57: -58357 | F57: -93660
B58: Resultat eksterne finanstransaksjoner | C58: =C45 -> -215833 | D58: =D45 -> -231130 | E58: -278513 | F58: -311355
B59: Motpost avskrivninger | C59: =C46 -> 554576 | D59: =D46 -> 556853 | E59: 558881 | F59: 561006
B60: Nettodriftsresultat (etter politiske endringer) | C60: =+C57+C58+C59 -> 195831 | D60: =+D57+D58+D59 -> 262209 | E60: 222011 | F60: 155991
B61: Nettodriftsresultat (etter politiske endringer) | C61: =+C60/C55 -> 0.01625166744 | D61: =+D60/D55 -> 0.02160271661 | E61: 0.01822066313 | F61: 0.01273562989
